bitfinex-derivatives/quotes_ETHF0:USTF0_20220106
["timestamp","ask_amount","ask_price","bid_price","bid_amount"]
[1641501540194,2.00479,3433.6,3433.0,2.00479]
[1641501540595,1.45617213,3433.4,3433.0,2.00479]
[1641501540794,2.00479,3433.6,3433.0,2.00479]
[1641501541595,2.00479,3433.6,3433.0,0.5484577]
[1641501543497,2.00479,3433.6,3432.2,1.0938222]
[1641501543900,1.45640117,3432.8,3432.2,1.0938222]
[1641501544102,1.45640117,3432.8,3432.3,0.781654]
[1641501544301,1.45640117,3432.8,3432.4,2.00479]
[1641501544599,2.91280659,3432.8,3432.4,2.00479]
[1641501545601,2.91280659,3432.8,3432.0,2.00479]
[1641501546201,1.5,3433.0,3432.0,2.00479]
[1641501546408,2.00479,3432.7,3432.0,2.00479]
[1641501548802,2.91337092,3432.2,3431.6,2.42461244]
[1641501549002,3.64857092,3432.2,3432.1,0.13077328]
[1641501549201,4.10855292,3432.2,3432.1,0.13077328]
[1641501549401,4.10855292,3432.2,3431.7,0.13077328]
[1641501549603,4.10855292,3432.2,3431.6,2.82179444]
[1641501549801,4.10855292,3432.2,3431.8,0.13073465]
[1641501550003,3.64857092,3432.2,3431.7,0.13073465]
[1641501550202,3.64857092,3432.2,3431.9,0.13073465]
[1641501550403,0.459982,3432.1,3431.9,0.13073465]
[1641501550601,0.459982,3432.1,3431.7,0.13073465]
[1641501550802,0.459982,3432.1,3432.0,0.13073465]
[1641501551002,0.459982,3432.1,3431.8,0.13073465]
[1641501551204,0.459982,3432.1,3432.0,0.13073465]
[1641501551404,0.459982,3432.1,3431.9,0.13073465]
[1641501551605,0.459982,3432.1,3432.0,0.13073465]
[1641501551802,3.64857092,3432.2,3432.0,0.13073465]
[1641501552003,0.459982,3432.1,3432.0,0.13073465]
[1641501552201,0.459982,3432.1,3431.6,2.401972]
[1641501552202,0.459982,3432.1,3431.7,0.13073465]
[1641501552601,0.459982,3432.1,3432.0,0.13073465]
[1641501552901,0.459982,3432.1,3431.6,2.00479]
[1641501554308,0.459982,3432.1,3431.6,2.401972]
[1641501556409,0.459982,3432.1,3431.7,0.08460387]
[1641501558010,0.459982,3432.1,3431.7,0.46907587]
[1641501558410,0.459982,3432.1,3431.7,0.08460387]
[1641501560413,2.00479,3431.9,3431.7,0.08460387]
[1641501560612,0.459982,3431.8,3431.7,0.08460387]
[1641501562116,0.459982,3431.8,3431.4,0.08460387]
[1641501563017,0.459982,3431.8,3431.2,2.00479]
[1641501563218,0.857164,3431.8,3431.2,1.42668512]
[1641501563518,0.857164,3431.8,3431.1,0.41984903]
[1641501563519,0.03038663,3431.2,3431.1,0.41984903]
[1641501563716,0.03038663,3431.2,3431.1,0.56954003]
[1641501563917,0.03038663,3431.2,3431.1,0.41984903]
[1641501564619,0.03038663,3431.2,3431.1,0.56954003]
[1641501565119,0.49036863,3431.2,3431.1,0.41984903]
[1641501565320,0.03038663,3431.2,3431.1,0.41984903]
[1641501565519,0.02483168,3431.2,3431.1,0.41984903]
[1641501565718,0.02483168,3431.2,3430.7,36.68188348]
[1641501565919,0.02483168,3431.2,3430.7,33.3394]
[1641501566119,0.02483168,3431.2,3430.7,34.8394]
[1641501566321,0.02483168,3431.2,3430.5,2.01934844]
[1641501566519,0.02483168,3431.2,3430.4,66.46537564]
[1641501566520,2.00479,3431.0,3430.4,65.1239]
[1641501566720,2.00479,3431.0,3430.2,5.462]
[1641501566921,0.397182,3430.9,3430.2,5.462]
[1641501567319,0.397182,3430.9,3430.0,2.12542256]
[1641501567723,0.397182,3430.9,3429.9,2.00479]
[1641501568522,2.00479,3430.6,3429.9,2.00479]
[1641501568721,0.397182,3430.5,3429.9,2.00479]
[1641501569121,2.85629,3430.6,3429.9,2.389262]
[1641501569523,2.85629,3430.6,3429.9,2.00479]
[1641501569921,2.00479,3430.6,3430.0,12.49]
[1641501570121,2.00479,3430.6,3430.2,1.5]
[1641501570422,2.00479,3430.6,3430.0,15.51861818]
[1641501570622,2.00479,3430.6,3430.0,3.02861818]
[1641501570821,2.00479,3430.6,3430.1,12.49]
[1641501571222,2.00479,3430.6,3430.2,12.874472]
[1641501572224,2.00479,3430.6,3430.2,11.41695852]
[1641501572524,2.00479,3430.6,3430.1,0.9531783]
[1641501573326,2.00479,3430.6,3430.2,0.384472]
[1641501574528,2.00479,3430.6,3430.3,12.49]
[1641501574727,2.00479,3430.6,3430.4,0.149691]
[1641501574928,96.4493,3432.1,3430.6,15.51805714]
[1641501575127,33.0807,3432.1,3430.9,0.01455706]
[1641501575329,1.45712695,3431.8,3430.9,0.01455706]
[1641501575732,32.1457,3432.7,3430.9,0.01455706]
[1641501575928,32.1457,3432.7,3431.0,5.77616978]
[1641501576128,1.45712695,3431.8,3431.0,1.11328278]
[1641501576330,1.45712695,3431.8,3431.1,0.384472]
[1641501576628,0.384472,3431.7,3431.2,2.00479]
[1641501576827,1.45712695,3431.8,3431.2,2.00479]
[1641501577030,2.00479,3432.0,3431.2,2.00479]
[1641501577228,1.45712695,3431.9,3431.2,2.00479]
[1641501577429,2.00479,3432.0,3431.2,2.00479]
[1641501577628,1.45712695,3431.7,3431.2,2.00479]
[1641501577928,1.45679596,3431.9,3431.2,2.00479]
[1641501578330,2.00479,3432.0,3431.2,2.00479]
[1641501578530,0.384472,3431.9,3431.3,0.13059437]
[1641501578732,1.45712695,3431.7,3431.3,0.13059437]
[1641501578932,0.384472,3431.9,3431.3,0.13059437]
[1641501579733,0.781654,3431.9,3431.3,0.13059437]
[1641501580633,1.45712695,3431.6,3431.3,0.13059437]
[1641501580832,1.45712695,3431.6,3431.4,0.149691]
[1641501581033,1.45712695,3431.6,3431.2,2.00479]
[1641501581633,0.397182,3431.6,3431.3,0.13063689]
[1641501581834,0.459982,3431.5,3431.3,0.13063689]
[1641501582135,1.85430895,3431.4,3431.2,2.00479]
[1641501582736,0.459982,3431.3,3431.2,2.00479]
[1641501582935,1.252772,3431.9,3431.2,2.154481]
[1641501583235,0.397182,3431.8,3431.2,2.154481]
[1641501584036,0.397182,3431.8,3431.2,2.00479]
[1641501584236,1.45712695,3431.3,3431.2,2.00479]
[1641501584435,0.857164,3431.3,3431.2,2.00479]
[1641501584638,0.397182,3431.3,3431.2,0.54768428]
[1641501585237,1.45712695,3431.8,3431.2,0.54768428]
[1641501585441,0.397182,3431.8,3431.2,0.54768428]
[1641501585639,1.45712695,3431.3,3431.2,0.54768428]
[1641501585838,2.31429095,3431.3,3430.9,2.00479]
[1641501586038,0.384472,3431.2,3430.5,30.5672]
[1641501586238,1.003872,3431.2,3430.5,30.5672]
[1641501586439,0.397182,3431.1,3430.5,30.5672]
[1641501586640,2.00479,3430.7,3430.6,0.13077427]
[1641501586838,2.464772,3430.7,3430.6,0.13077427]
[1641501587038,4.31908095,3430.7,3430.6,0.13077427]
[1641501587244,4.31908095,3430.7,3430.1,0.13077427]
[1641501587639,1.45712695,3430.4,3430.1,0.13077427]
[1641501587839,2.16652695,3430.4,3430.2,0.149691]
[1641501588246,0.7094,3430.4,3430.2,0.149691]
[1641501588441,0.7094,3430.4,3430.3,0.13077427]
[1641501588640,1.169382,3430.4,3430.3,0.13077427]
[1641501589241,2.62650895,3430.4,3430.3,0.13077427]
[1641501589441,1.566564,3430.4,3430.3,0.13077427]
[1641501589644,3.02369095,3430.4,3430.1,0.13077427]
[1641501589846,3.02369095,3430.4,3430.3,0.13077427]
[1641501590244,3.02369095,3430.4,3430.2,0.13077427]
[1641501590645,3.02369095,3430.4,3430.3,0.13077427]
[1641501591147,3.02369095,3430.4,3430.0,0.13077427]
[1641501591346,1.566564,3430.4,3430.3,0.13077427]
[1641501591544,2.56370895,3430.4,3430.1,0.13077427]
[1641501591845,0.7094,3430.4,3430.2,0.384472]
[1641501592045,2.00479,3430.7,3430.3,0.13077427]
[1641501592245,2.389262,3430.7,3430.3,0.13077427]
[1641501592447,1.32680719,3430.0,3429.9,2.00479]
[1641501592646,1.32680719,3430.0,3429.9,2.154481]
[1641501593746,2.78393414,3430.0,3429.9,2.154481]
[1641501594145,2.78393414,3430.0,3429.9,2.23856805]
[1641501594346,2.54108757,3430.0,3429.9,2.23856805]
[1641501594951,3.36278757,3430.0,3429.9,2.23856805]
[1641501596350,2.27882695,3430.0,3429.9,2.23856805]
[1641501596550,3.73640841,3430.0,3429.9,2.23856805]
[1641501596750,2.27882695,3430.0,3429.9,2.23856805]
[1641501597152,2.27882695,3430.0,3429.9,2.154481]
[1641501598550,1.45712695,3430.0,3429.9,2.154481]
[1641501600556,2.389262,3430.7,3429.9,2.154481]
[1641501600755,2.00479,3430.7,3430.0,1.07918199]
[1641501601154,2.00479,3430.7,3430.1,1.09131468]
[1641501601555,1.45738603,3430.5,3430.1,1.09131468]
[1641501601754,2.00479,3430.7,3430.1,1.09131468]
[1641501601954,2.00479,3430.7,3430.1,13.51094078]
[1641501602655,2.00479,3430.7,3430.2,1.09111284]
[1641501603655,2.00479,3430.7,3430.1,1.02094078]
[1641501603656,2.389262,3430.7,3430.1,1.02094078]
[1641501603856,1.45712695,3430.6,3430.1,1.02094078]
[1641501604054,1.45712695,3430.4,3430.1,1.02094078]
[1641501604256,0.6254,3430.4,3430.2,0.149691]
[1641501604656,0.6254,3430.4,3430.2,0.23215681]
[1641501605057,0.6254,3430.4,3430.2,0.08246581]
[1641501605259,0.6254,3430.4,3430.3,0.149691]
[1641501605455,0.6254,3430.4,3430.2,0.08246581]
[1641501605855,0.6254,3430.4,3430.1,1.02094078]
[1641501606157,0.6254,3430.4,3430.2,0.149691]
[1641501606358,2.389262,3430.7,3430.2,0.149691]
[1641501607257,1.45712695,3430.5,3430.1,1.02094078]
[1641501607458,2.389262,3430.7,3430.1,1.02094078]
[1641501607659,1.45712695,3430.2,3430.1,1.02094078]
[1641501607860,1.45712695,3430.2,3430.1,1.17063178]
[1641501608059,2.389262,3430.7,3430.1,1.17063178]
[1641501608961,2.389262,3430.7,3430.1,1.25311664]
[1641501609160,3.84638895,3430.7,3430.1,1.25311664]
[1641501609660,2.389262,3430.7,3430.1,1.25311664]
[1641501609860,2.00479,3430.7,3430.2,0.08248486]
[1641501610062,3.46191695,3430.7,3430.2,0.08248486]
[1641501610463,2.00479,3430.7,3430.2,0.08248486]
[1641501610962,1.5,3430.3,3430.2,0.08248486]
[1641501611164,1.5,3430.3,3429.2,1.84248348]
[1641501611165,16.98837757,3430.3,3429.2,1.84248348]
[1641501611466,2.95712695,3429.3,3428.7,3.07080579]
[1641501611662,2.95712695,3429.0,3428.7,3.07080579]
[1641501611962,1.91710895,3429.0,3428.7,3.07080579]
[1641501612564,6.96670695,3428.8,3428.7,3.07080579]
[1641501612765,6.96670695,3428.8,3427.4,2.00479]
[1641501612968,0.384472,3428.7,3427.4,4.45454562]
[1641501613366,1.45712695,3427.6,3427.4,4.45454562]
[1641501613565,2.24152695,3427.6,3427.5,0.66502661]
[1641501613965,2.24152695,3427.6,3427.5,0.13086361]
[1641501614165,2.24152695,3427.6,3427.4,4.45454562]
[1641501614366,2.24152695,3427.6,3427.5,0.149691]
[1641501614565,1.45712695,3428.5,3427.5,0.149691]
[1641501614766,1.45712695,3428.5,3427.5,14.64807878]
[1641501614967,2.00479,3428.8,3427.5,14.64807878]
[1641501615166,2.91542185,3428.4,3427.5,14.64807878]
[1641501615366,2.91542185,3428.4,3428.0,16.49]
[1641501615367,0.6146,3428.4,3428.0,16.49]
[1641501615568,2.89975025,3429.4,3428.0,16.49]
[1641501615569,1.45712695,3429.0,3428.1,12.53287305]
[1641501615770,0.95618047,3429.7,3428.8,2.14138827]
[1641501615967,1.45712695,3429.6,3428.9,11.81313288]
[1641501616166,0.95618047,3430.1,3429.0,0.397181]
[1641501616367,0.95618047,3430.1,3429.0,12.887181]
[1641501616568,0.95618047,3430.1,3429.5,2.00479]
[1641501616768,0.397182,3430.0,3429.5,3.195971]
[1641501617170,0.95618047,3430.1,3429.5,3.195971]
[1641501617368,2.00479,3430.3,3429.5,3.195971]
[1641501617568,0.397182,3430.2,3429.5,3.195971]
[1641501618370,1.45712695,3429.6,3429.5,3.195971]
[1641501618773,1.84159895,3429.6,3429.5,2.79879]
[1641501618972,1.84159895,3429.6,3429.5,2.00479]
[1641501619573,1.91710895,3429.6,3429.1,2.00479]
[1641501619774,1.45712695,3429.2,3428.7,2.7516881]
[1641501619974,2.26772695,3429.2,3428.7,3.13430309]
[1641501620175,0.8106,3429.2,3428.7,3.13430309]
[1641501620373,1.45712695,3428.8,3428.1,2.55273027]
[1641501620574,0.8106,3429.2,3428.7,2.00479]
[1641501620777,1.45712695,3429.0,3428.7,2.00479]
[1641501620976,1.195072,3429.2,3428.8,0.149691]
[1641501621377,1.45712695,3428.9,3428.8,0.149691]
[1641501622576,0.397182,3429.1,3428.8,0.149691]
[1641501622775,0.397182,3429.1,3428.4,2.00479]
[1641501622776,0.459982,3429.0,3428.4,2.00479]
[1641501622976,1.45712695,3428.5,3428.4,2.00479]
[1641501623177,2.28192695,3428.5,3428.4,2.154481]
[1641501624779,0.8248,3428.5,3428.4,2.154481]
[1641501624978,2.74190895,3428.5,3428.4,2.00479]
[1641501625179,0.8248,3428.5,3428.4,2.154481]
[1641501625382,1.45712695,3428.8,3428.4,2.551662]
[1641501627681,1.45712695,3428.8,3428.4,2.401971]
[1641501628281,2.00479,3429.0,3428.5,4.0]
[1641501628481,0.95618047,3429.4,3428.6,12.887181]
[1641501628682,1.45789105,3429.3,3429.2,2.00479]
[1641501628880,0.95618047,3429.4,3429.2,2.551662]
[1641501629883,0.95618047,3429.4,3429.2,1.09373929]
[1641501630584,1.45712695,3429.3,3429.2,1.23677385]
[1641501630789,1.45712695,3429.3,3429.2,0.98928385]
[1641501631388,2.31429095,3429.3,3429.2,0.29272556]
[1641501631987,3.81429095,3429.3,3429.2,0.29272556]
[1641501632384,4.27680027,3429.3,3428.5,2.44952935]
[1641501632584,1.45712695,3428.6,3428.4,1.83705572]
[1641501632785,2.741636,3428.5,3428.4,1.83705572]
[1641501632985,1.241636,3428.5,3428.4,1.83705572]
[1641501633185,2.741636,3428.5,3428.4,1.83705572]
[1641501633788,2.741636,3428.5,3427.7,1.83705572]
[1641501633986,1.45712695,3428.1,3427.7,1.83705572]
[1641501634187,0.397182,3428.0,3427.7,1.83705572]
[1641501634586,0.397182,3428.0,3427.8,0.149691]
[1641501634787,2.401972,3428.0,3427.8,0.149691]
[1641501635690,2.401972,3428.0,3427.7,1.83705572]
[1641501635691,1.45712695,3427.9,3427.7,1.83705572]
[1641501635891,0.781654,3427.8,3427.7,1.83705572]
[1641501636295,1.241636,3427.8,3427.5,2.44952935]
[1641501636493,1.241636,3427.8,3426.8,2.00479]
[1641501636693,2.00479,3427.4,3426.8,2.00479]
[1641501636894,0.397182,3427.3,3426.8,2.00479]
[1641501637094,1.45712695,3427.0,3426.8,2.00479]
[1641501637293,2.26422695,3427.0,3426.9,2.56305393]
[1641501637492,2.66140895,3427.0,3426.9,2.56305393]
[1641501638495,1.204282,3427.0,3426.9,2.56305393]
[1641501639696,1.664264,3427.0,3426.9,2.41336293]
[1641501639896,1.204282,3427.0,3426.9,2.41336293]
[1641501640198,2.66140895,3427.0,3426.9,2.41336293]
[1641501640597,1.204282,3427.0,3426.9,2.56305393]
[1641501641402,1.664264,3427.0,3426.9,2.41336293]
[1641501641598,1.204282,3427.0,3426.9,2.41336293]
[1641501641799,1.204282,3427.0,3426.9,2.56305393]
[1641501642500,1.664264,3427.0,3426.9,2.41336293]
[1641501642699,1.204282,3427.0,3426.9,2.56305393]
[1641501642900,1.204282,3427.0,3426.9,2.41336293]
[1641501643401,3.12139095,3427.0,3426.9,2.41336293]
[1641501644602,3.12139095,3427.0,3426.4,4.63628485]
[1641501644804,5.12618095,3427.0,3426.4,4.63628485]
[1641501645003,1.45712695,3426.5,3426.4,4.63628485]
[1641501645204,1.45712695,3426.5,3426.4,4.78597585]
[1641501645405,1.91710895,3426.5,3426.4,4.63628485]
[1641501645603,1.91710895,3426.5,3426.3,2.00479]
[1641501645803,1.45712695,3426.5,3426.3,2.00479]
[1641501646203,1.91710895,3426.5,3426.4,0.149691]
[1641501646506,1.85430895,3426.5,3426.2,0.4443]
[1641501646907,1.45712695,3426.3,3426.1,1.72098774]
[1641501647104,0.857164,3426.2,3426.1,1.72098774]
[1641501647505,0.857164,3426.2,3425.9,0.4399]
[1641501647705,0.781654,3426.2,3425.9,0.4399]
[1641501648105,0.459982,3426.1,3425.9,0.4399]
[1641501648307,1.85430895,3426.0,3425.9,0.4399]
[1641501649907,1.85430895,3426.0,3425.5,5.462]
[1641501650106,1.45712695,3425.6,3425.5,5.462]
[1641501650308,2.99749095,3425.6,3424.5,30.7669]
[1641501650506,1.45712695,3424.6,3424.3,0.01458479]
[1641501650708,0.397182,3424.5,3424.3,0.01458479]
[1641501650907,1.45712695,3424.4,3424.2,4.14881777]
[1641501651107,0.459982,3424.3,3424.2,1.43987372]
[1641501651310,0.459982,3424.3,3423.6,5.37545798]
[1641501651509,1.45712695,3424.0,3423.6,3.07080579]
[1641501651908,1.91710895,3424.0,3423.6,3.07080579]
[1641501652507,3.41710895,3424.0,3423.6,3.07080579]
[1641501652810,3.41710895,3424.0,3423.4,3.37788637]
[1641501652811,5.46670695,3423.7,3423.4,3.37788637]
[1641501653010,1.47448,3423.7,3423.6,0.04287305]
[1641501653208,1.45712695,3425.0,3423.6,0.66276018]
[1641501653407,1.45712695,3425.0,3424.3,0.04287305]
[1641501653609,1.45712695,3425.0,3424.3,0.847]
[1641501653808,1.45712695,3424.7,3424.3,0.847]
[1641501654009,1.45712695,3424.5,3424.3,0.847]
[1641501654212,1.4596665,3425.1,3424.4,0.149691]
[1641501654408,1.45712695,3425.0,3424.4,0.149691]
[1641501654808,1.4596665,3425.1,3424.6,2.00479]
[1641501655010,1.45712695,3425.0,3424.6,2.00479]
[1641501655910,1.45712695,3424.7,3424.6,0.54456387]
[1641501656109,1.91710895,3424.7,3424.6,0.54456387]
[1641501656509,1.45712695,3424.9,3424.6,0.69425487]
[1641501656712,1.45712695,3424.9,3424.6,0.149691]
[1641501657010,0.459982,3424.8,3424.2,2.00479]
[1641501657209,0.459982,3424.8,3424.2,2.401972]
[1641501658513,0.459982,3424.8,3424.2,2.00479]
[1641501658712,1.84159895,3424.9,3424.2,2.00479]
[1641501658713,1.45712695,3424.9,3424.2,4.29695611]
[1641501658915,1.45712695,3424.9,3424.2,5.05405611]
[1641501659315,3.46191695,3425.0,3424.2,5.01118306]
[1641501659514,2.00479,3425.0,3424.2,5.01118306]
[1641501659714,1.45712695,3424.4,3424.2,5.01118306]
[1641501659914,1.45712695,3424.4,3424.3,0.149691]
[1641501660118,2.00479,3425.0,3424.5,1.85211106]
[1641501660316,3.46191695,3425.0,3424.5,1.85211106]
[1641501660914,2.00479,3425.0,3424.5,1.85211106]
[1641501661115,1.45712695,3424.6,3424.5,1.85211106]
[1641501661315,1.45712695,3424.9,3424.5,0.149691]
[1641501661516,1.45961962,3425.3,3424.6,0.04287305]
[1641501661818,0.95618047,3425.4,3424.4,14.38498411]
[1641501662115,0.95618047,3425.4,3425.1,0.04287305]
[1641501662315,0.95618047,3425.4,3425.2,0.149691]
[1641501662517,0.384472,3425.5,3425.2,0.149691]
[1641501662715,0.384472,3425.5,3425.4,2.00479]
[1641501663115,0.384472,3425.5,3425.4,2.154481]
[1641501663317,0.384472,3425.5,3425.4,2.00479]
[1641501663917,1.45925753,3426.1,3425.4,2.154481]
[1641501664319,4.76009651,3426.1,3425.5,0.397182]
[1641501664519,3.30296956,3426.1,3425.5,0.397182]
[1641501665118,3.30083898,3426.1,3425.5,0.397182]
[1641501665319,0.384472,3426.1,3425.5,0.397182]
[1641501665719,2.00479,3426.3,3425.6,2.01131671]
[1641501665920,2.00479,3426.3,3425.7,12.887182]
[1641501666119,2.00479,3426.3,3425.8,1.04273217]
[1641501666320,2.00479,3426.3,3425.8,5.80663217]
[1641501666519,2.00479,3426.3,3425.9,0.397182]
[1641501666720,3.46191695,3426.6,3425.9,2.401972]
[1641501667321,1.45712695,3426.1,3425.9,2.00479]
[1641501667521,1.45712695,3426.1,3426.0,0.149691]
[1641501668422,1.84159895,3426.5,3426.0,0.149691]
[1641501669424,0.384472,3426.5,3426.0,0.149691]
[1641501669622,1.45712695,3426.1,3426.0,0.149691]
[1641501669822,2.74770895,3426.1,3425.9,2.00479]
[1641501670124,4.24770895,3426.1,3425.4,2.00479]
[1641501670323,1.45712695,3425.5,3425.4,2.00479]
[1641501670622,0.8306,3426.1,3425.4,2.154481]
[1641501670824,1.45712695,3425.6,3425.4,2.154481]
[1641501671023,0.8306,3426.1,3425.4,2.154481]
[1641501671024,1.45712695,3425.9,3425.4,2.154481]
[1641501671423,0.8306,3426.1,3425.4,2.154481]
[1641501671623,1.45712695,3425.9,3425.4,2.154481]
[1641501672027,0.384472,3426.5,3425.4,2.551663]
[1641501672028,1.45712695,3426.3,3425.4,2.551663]
[1641501672223,0.384472,3426.5,3425.4,2.551663]
[1641501672624,1.45712695,3426.1,3425.4,2.551663]
[1641501672823,0.384472,3426.5,3425.4,2.551663]
[1641501673024,1.45712695,3426.1,3425.4,3.208563]
[1641501674025,1.45712695,3426.3,3425.4,3.208563]
[1641501674228,0.384472,3426.5,3425.4,3.208563]
[1641501674426,1.45712695,3426.3,3425.4,3.208563]
[1641501675028,1.45712695,3426.0,3425.4,3.208563]
[1641501675428,0.384472,3426.5,3425.4,3.208563]
[1641501675429,1.45712695,3425.5,3425.4,3.208563]
[1641501675628,0.384472,3426.5,3425.4,3.208563]
[1641501675828,1.45922361,3426.2,3425.4,3.208563]
[1641501677831,1.45922361,3426.2,3425.4,2.551663]
[1641501678130,1.45712695,3425.5,3425.4,2.551663]
[1641501678530,1.45922361,3426.2,3425.4,2.551663]
[1641501678931,1.45712695,3425.6,3425.4,2.551663]
[1641501679131,1.45712695,3425.5,3425.4,2.154481]
[1641501679532,1.45712695,3425.8,3425.4,2.154481]
[1641501679835,2.34492361,3426.2,3425.4,2.154481]
[1641501680232,1.45922361,3426.2,3425.4,2.154481]
[1641501680434,1.45712695,3425.8,3425.4,2.154481]
[1641501680633,1.45922361,3426.2,3425.4,2.154481]
[1641501680836,1.45712695,3426.0,3425.4,2.154481]
[1641501681237,0.384472,3425.9,3425.4,2.154481]
[1641501681636,0.384472,3425.9,3425.4,2.551663]
[1641501682036,1.45712695,3425.8,3425.4,2.551663]
[1641501682236,1.45712695,3425.5,3425.4,2.00479]
[1641501682437,1.45712695,3425.5,3425.4,2.154481]
[1641501682838,1.45712695,3425.5,3425.4,2.00479]
[1641501683236,0.384472,3425.9,3425.4,2.154481]
[1641501683437,2.91635056,3426.2,3425.4,2.154481]
[1641501683635,2.91635056,3426.2,3425.5,0.397182]
[1641501683836,1.5,3427.3,3425.5,0.397182]
[1641501683837,1.45935549,3425.9,3425.5,0.397182]
[1641501684237,1.45712695,3426.4,3425.5,0.397182]
[1641501684637,2.90174178,3427.0,3425.5,0.397182]
[1641501684837,1.45712695,3426.4,3425.5,0.397182]
[1641501685638,2.90174178,3427.0,3425.5,0.397182]
[1641501685838,1.45712695,3426.0,3425.5,0.397182]
[1641501686241,0.384472,3426.1,3425.5,0.397182]
[1641501686439,1.45712695,3426.3,3425.5,0.397182]
[1641501686839,1.45712695,3426.1,3425.5,0.397182]
[1641501687045,1.45712695,3426.3,3425.5,0.397182]
[1641501687644,1.45901292,3426.7,3425.5,0.397182]
[1641501687840,1.45712695,3426.3,3425.5,4.397182]
[1641501688039,1.45712695,3426.3,3425.6,0.8757362]
[1641501688240,1.45712695,3426.0,3425.7,0.397182]
[1641501688440,1.45901292,3426.7,3425.8,0.149691]
[1641501688641,1.45712695,3426.0,3425.8,0.149691]
[1641501688841,1.45712695,3426.0,3425.8,2.154481]
[1641501689042,1.45712695,3426.0,3425.9,0.397182]
[1641501689241,1.45712695,3426.3,3425.9,0.397182]
[1641501689442,1.45712695,3426.0,3425.9,0.397182]
[1641501689644,1.45712695,3426.0,3425.9,0.546873]
[1641501689842,1.91710895,3426.0,3425.8,2.00479]
[1641501690043,1.45712695,3426.0,3425.8,2.00479]
[1641501690344,1.45712695,3426.0,3425.9,0.149691]
[1641501690543,1.84364436,3426.3,3425.9,0.149691]
[1641501690744,1.45712695,3426.1,3425.9,0.149691]
[1641501690946,1.45917236,3426.3,3426.0,0.44005505]
[1641501691244,1.45712695,3426.5,3426.2,12.49]
[1641501691443,1.45712695,3427.4,3426.4,12.49]
[1641501691643,1.45712695,3427.4,3426.6,0.94603152]
[1641501691843,0.95618047,3427.6,3426.7,4.0]
[1641501692046,0.95618047,3427.6,3427.2,0.89960965]
[1641501692444,0.95618047,3427.6,3427.2,1.29679165]
[1641501692848,1.45712695,3427.3,3427.2,1.29679165]
[1641501693046,1.45712695,3427.3,3427.2,1.44648265]
[1641501693244,2.389262,3427.7,3427.2,1.44648265]
[1641501694252,2.00479,3427.7,3427.2,1.44648265]
[1641501694446,1.45862749,3427.6,3427.3,4.0]
[1641501694647,1.45862749,3427.6,3427.5,12.49]
[1641501694845,2.00479,3428.1,3427.5,13.39097082]
[1641501695045,2.00479,3428.1,3427.7,1.31421003]
[1641501695246,1.45712695,3428.5,3427.8,0.397182]
[1641501695448,2.96097047,3428.7,3427.8,12.887182]
[1641501695747,2.96097047,3428.7,3428.0,12.49]
[1641501695950,1.45712695,3428.9,3428.1,12.887182]
[1641501696246,0.95618047,3429.0,3428.3,13.46681799]
[1641501696446,0.95618047,3429.0,3428.4,1.37397139]
[1641501697047,0.95618047,3429.0,3428.7,2.00479]
[1641501697246,0.95618047,3429.0,3428.8,0.149691]
[1641501697446,0.46268947,3428.9,3428.8,0.149691]
[1641501697846,1.91981642,3428.9,3428.8,0.149691]
[1641501698048,2.76427042,3428.9,3428.7,2.00479]
[1641501698247,1.30714347,3428.9,3428.7,2.00479]
[1641501698545,1.45811403,3428.8,3428.7,2.00479]
[1641501698746,0.46268947,3428.9,3428.7,2.154481]
[1641501699147,1.91981642,3428.9,3428.7,2.154481]
[1641501699347,0.46268947,3428.9,3428.7,2.154481]
[1641501699547,1.91981642,3428.9,3428.7,2.00479]
[1641501699748,0.459982,3428.8,3428.7,2.00479]
[1641501700048,0.84716147,3428.9,3428.7,2.00479]
[1641501700447,0.84716147,3428.9,3428.4,2.00479]
[1641501700650,0.46268947,3428.8,3428.4,2.401972]
[1641501701048,0.46268947,3428.8,3428.4,2.00479]
[1641501701248,1.45712695,3428.5,3428.4,2.00479]
[1641501701449,2.77000895,3428.5,3428.4,2.00479]
[1641501701649,1.312882,3428.5,3428.4,2.00479]
[1641501701848,0.8529,3428.5,3428.4,2.00479]
[1641501702650,1.31558947,3428.5,3428.4,2.00479]
[1641501703049,2.77271642,3428.5,3428.4,2.00479]
[1641501703251,1.31558947,3428.5,3428.4,2.00479]
[1641501703651,1.77557147,3428.5,3428.4,2.00479]
[1641501704151,1.31558947,3428.5,3428.4,2.154481]
[1641501704351,1.91981642,3428.5,3428.4,2.154481]
[1641501704652,3.37805679,3428.5,3428.4,2.154481]
[1641501704852,1.91981642,3428.5,3428.4,2.154481]
[1641501705351,2.37979842,3428.5,3428.4,2.00479]
[1641501705553,1.91981642,3428.5,3428.4,2.154481]
[1641501705953,1.91981642,3428.5,3428.4,2.00479]
[1641501706555,1.91981642,3428.5,3428.4,2.154481]
[1641501707454,0.46268947,3428.5,3428.4,2.154481]
[1641501708854,0.46268947,3428.5,3428.4,2.551663]
[1641501709254,0.46268947,3428.6,3428.4,2.551663]
[1641501710857,1.91981642,3428.6,3428.4,2.551663]
[1641501711556,1.45712695,3428.6,3428.4,2.551663]
[1641501712257,1.91710895,3428.6,3428.4,2.00479]
[1641501712458,1.45712695,3428.6,3428.4,2.154481]
[1641501712657,0.46268947,3428.5,3428.4,2.154481]
[1641501712860,0.46268947,3428.5,3428.4,2.00479]
[1641501713060,0.92267147,3428.5,3428.4,2.00479]
[1641501713361,0.46268947,3428.5,3428.4,2.154481]
[1641501713559,1.45712695,3428.6,3428.4,2.154481]
[1641501714963,1.45712695,3428.6,3428.2,3.29225911]
[1641501715164,25.44712694,3428.3,3427.0,4.91288601]
[1641501715363,2.95712695,3427.1,3425.8,1.85211106]
[1641501715564,1.45712695,3425.9,3425.8,2.28541106]
[1641501715765,1.45712695,3425.9,3425.8,1.85211106]
[1641501715766,2.68019895,3425.9,3425.8,1.85211106]
[1641501715968,3.14018095,3425.9,3425.8,1.85211106]
[1641501716163,6.04311641,3425.9,3425.8,1.85211106]
[1641501716363,2.68019895,3425.9,3425.0,3.37788637]
[1641501716563,1.45712695,3425.6,3424.9,12.49]
[1641501716765,1.45712695,3425.0,3424.8,0.014583]
[1641501717065,1.45712695,3425.3,3424.9,2.00479]
[1641501717264,2.00479,3425.7,3425.2,0.01458098]
[1641501717463,2.00479,3425.7,3425.3,0.397182]